bitfinex-derivatives/quotes_ETHF0:USTF0_20250612
["timestamp","ask_amount","ask_price","bid_price","bid_amount"]
[1749721058017,0.72442,2760.4,2760.3,0.72442]
[1749721058413,0.72445,2760.3,2760.2,0.72445]
[1749721059012,0.72443,2760.4,2760.3,0.72443]
[1749721059606,0.72444,2760.3,2760.2,0.72445]
[1749721060313,0.72443,2760.4,2760.3,0.72443]
[1749721061315,0.72444,2760.3,2760.2,0.72445]
[1749721061811,0.72446,2760.3,2760.2,0.72446]
[1749721062213,0.72447,2760.2,2760.1,8.27228]
[1749721062414,0.72447,2760.2,2760.1,24.95228]
[1749721063116,0.72447,2760.2,2760.1,24.2278]
[1749721064416,0.72447,2760.2,2760.1,24.95229]
[1749721064915,0.72446,2760.3,2760.2,0.72444]
[1749721065116,4.4664,2760.7,2760.3,0.72442]
[1749721065318,0.72441,2760.4,2760.3,0.72442]
[1749721065619,0.72439,2760.6,2760.5,0.72437]
[1749721065812,0.72439,2760.6,2760.5,16.671]
[1749721068020,1.99499,2760.6,2760.5,16.671]
[1749721069019,1.2706,2760.6,2760.1,3.93229]
[1749721069222,0.72444,2760.3,2760.2,21.72846]
[1749721069521,0.72444,2760.3,2760.2,21.004]
[1749721069923,0.72447,2760.2,2760.1,3.93228]
[1749721070119,0.0620172,2760.4,2760.2,0.72444]
[1749721070120,0.72445,2760.3,2760.2,0.72444]
[1749721072218,0.7864472,2760.4,2760.3,0.72444]
[1749721072816,0.7864272,2760.4,2760.3,0.72444]
[1749721073319,0.72447,2760.3,2760.2,0.72445]
[1749721075222,0.7864472,2760.4,2760.3,0.72444]
[1749721075419,0.0620172,2760.4,2760.3,0.72444]
[1749721076221,0.7864272,2760.4,2760.3,0.72444]
[1749721076924,0.0620172,2760.4,2760.3,0.72444]
[1749721077322,0.7864272,2760.4,2760.3,0.72444]
[1749721077827,0.0620172,2760.4,2760.3,0.72444]
[1749721078414,0.7864272,2760.4,2760.3,0.72444]
[1749721078726,0.0620172,2760.4,2760.3,0.72444]
[1749721079721,0.7864272,2760.4,2760.3,0.72444]
[1749721079923,6.51103511,2760.4,2759.7,16.638]
[1749721080127,3.86271791,2760.3,2759.9,3.93232]
[1749721080327,0.72454,2760.0,2759.9,3.2078]
[1749721080539,0.72454,2760.0,2759.9,3.93234]
[1749721080716,0.72454,2760.0,2759.9,3.2078]
[1749721081227,0.72454,2760.0,2759.9,24.2598]
[1749721081420,0.72454,2760.0,2759.9,24.2608]
[1749721081723,2.17360692,2760.0,2759.9,3.2078]
[1749721082027,0.7246,2759.7,2759.6,1.91462]
[1749721082324,0.7246,2759.7,2759.6,22.96862]
[1749721082521,0.7246,2759.8,2759.7,0.72457]
[1749721083226,5.01902,2760.2,2759.6,22.244]
[1749721083423,0.72459,2759.8,2759.7,0.72458]
[1749721084116,0.72453,2760.0,2759.9,0.72452]
[1749721084425,0.72456,2759.9,2759.8,0.72455]
[1749721084623,2.17362385,2759.9,2759.8,5.07755]
[1749721084821,0.72454,2759.9,2759.8,4.353]
[1749721085021,2.17359793,2759.9,2759.8,4.353]
[1749721085224,0.72457,2759.8,2759.7,3.2078]
[1749721085527,0.72457,2759.8,2759.5,0.60803971]
[1749721085528,0.72462,2759.6,2759.5,0.00543971]
[1749721085730,2.17375827,2759.6,2759.5,21.04943971]
[1749721086031,2.17375827,2759.6,2759.5,21.05343971]
[1749721086227,3.36485827,2759.6,2759.5,21.05343971]
[1749721087028,3.36485827,2759.6,2759.5,16.69743971]
[1749721087423,0.72475,2759.1,2759.0,3.2078]
[1749721087623,0.72475,2759.1,2759.0,19.8978]
[1749721088018,0.72475,2759.1,2759.0,19.9278]
[1749721089021,0.72478,2759.0,2758.9,26.261]
[1749721089224,0.72481,2758.9,2758.8,0.00543971]
[1749721089529,4.01210319,2758.9,2758.8,0.00543971]
[1749721089730,8.28729319,2758.9,2757.9,3.2078]
[1749721089926,0.72509,2757.9,2757.7,21.8091]
[1749721090121,5.02013,2758.5,2758.0,0.72503]
[1749721090327,0.72499,2758.2,2758.1,3.2078]
[1749721090545,0.72501,2758.2,2758.0,3.93283]
[1749721090727,0.72502,2758.1,2758.0,3.2078]
[1749721091036,3.8354,2758.5,2757.9,0.72507]
[1749721091037,0.72505,2758.0,2757.9,0.72507]
[1749721091225,0.72505,2758.0,2757.8,1.27463971]
[1749721091425,1.249,2758.4,2757.9,0.72507]
[1749721091620,0.725,2758.2,2757.8,1.27463971]
[1749721091830,1.249,2758.4,2757.8,1.27463971]
[1749721091831,0.72502,2758.1,2758.0,3.2078]
[1749721092432,0.72502,2758.1,2758.0,3.93284]
[1749721092630,0.72502,2758.1,2758.0,3.2078]
[1749721094126,0.72507,2757.9,2757.8,0.00543971]
[1749721094333,0.72507,2757.9,2757.8,21.09343971]
[1749721094534,0.72507,2757.9,2757.8,21.09143971]
[1749721094735,2.53797,2757.9,2757.8,0.00543971]
[1749721095330,7.53797,2757.9,2757.8,0.00543971]
[1749721095634,0.72515,2757.6,2757.3,3.2078]
[1749721096529,0.72515,2757.6,2757.3,3.21323971]
[1749721097029,0.00543971,2757.8,2757.3,3.21323971]
[1749721097030,0.00543971,2757.8,2757.7,0.72512]
[1749721097228,0.00543971,2757.8,2757.7,3.93292]
[1749721100136,0.73053971,2757.8,2757.7,3.93292]
[1749721100638,0.73053971,2757.8,2757.7,3.2078]
[1749721100838,0.00543971,2757.8,2757.7,20.70092]
[1749721101137,0.73053971,2757.8,2757.7,20.70092]
[1749721101526,0.00543971,2757.8,2757.7,20.70092]
[1749721102031,0.72493,2758.5,2758.4,0.72492]
[1749721102338,0.72493,2758.5,2758.4,21.12]
[1749721103541,0.72493,2758.5,2758.4,21.84494]
[1749721103739,0.72493,2758.5,2758.4,21.12]
[1749721104732,0.72493,2758.5,2758.4,21.84494]
[1749721104932,0.72493,2758.5,2758.4,21.12]
[1749721105138,0.72494,2758.4,2758.3,3.93274]
[1749721105334,0.72499,2758.2,2758.1,21.116]
[1749721105638,0.72498,2758.3,2758.2,0.72499]
[1749721106038,2.45608,2758.6,2758.1,24.3238]
[1749721106231,3.63958,2758.6,2758.1,24.3238]
[1749721106431,0.72499,2758.2,2758.1,21.116]
[1749721107035,0.72495,2758.4,2758.1,21.116]
[1749721107236,0.00543971,2758.7,2758.1,26.13633]
[1749721107540,0.72492,2758.6,2758.5,0.7249]
[1749721107737,0.72492,2758.6,2758.5,4.356]
[1749721109641,0.72494,2758.4,2758.3,21.132]
[1749721110038,0.72502,2758.1,2758.0,0.72503]
[1749721110239,0.72502,2758.1,2758.0,21.86203]
[1749721110737,0.72507,2758.0,2757.9,0.72505]
[1749721110933,0.72507,2758.0,2757.9,21.86105]
[1749721111340,0.72504,2758.1,2758.0,0.72503]
[1749721111842,0.72504,2758.0,2757.9,23.08944]
[1749721112241,0.72504,2758.0,2757.9,22.3974]
[1749721112442,0.72504,2758.0,2757.9,23.12247]
[1749721112740,1.35118,2758.3,2758.2,0.72499]
[1749721112938,0.72498,2758.3,2758.2,0.72499]
[1749721113136,0.6262,2758.6,2758.1,5.02033]
[1749721113335,1.44987617,2758.5,2758.4,0.72491]
[1749721113538,2.17478617,2758.5,2758.4,21.89291]
[1749721113733,1.44987617,2758.5,2758.4,21.89291]
[1749721114041,2.17478617,2758.5,2758.4,21.89291]
[1749721114238,2.17478617,2758.5,2758.4,22.3848]
[1749721114733,2.17478617,2758.5,2758.4,23.10974]
[1749721116544,1.44987617,2758.5,2758.4,23.10974]
[1749721116744,2.17478617,2758.5,2758.4,23.10974]
[1749721117242,1.44987617,2758.5,2758.4,23.10974]
[1749721117446,2.17478617,2758.5,2758.4,23.10974]
[1749721118236,1.44987617,2758.5,2758.3,0.5897]
[1749721118441,2.17481617,2758.4,2758.3,1.31466]
[1749721118640,2.17481617,2758.4,2758.3,22.46966]
[1749721118847,2.17481617,2758.4,2758.3,23.72246]
[1749721120348,1.44987617,2758.4,2758.3,23.72246]
[1749721120844,0.00543971,2758.7,2758.6,0.72489]
[1749721121047,0.72474,2759.2,2759.1,0.72475]
[1749721121240,0.72474,2759.2,2759.1,21.157]
[1749721123347,0.72474,2759.2,2759.1,21.88175]
[1749721123546,0.72474,2759.2,2759.1,21.157]
[1749721125152,0.72474,2759.2,2759.1,21.88175]
[1749721125451,0.72474,2759.2,2759.1,21.157]
[1749721125846,0.72478,2759.0,2758.9,3.21323971]
[1749721126050,0.72478,2759.0,2758.9,25.08104971]
[1749721126252,0.72478,2759.0,2758.9,4.39843971]
[1749721127054,1.94468,2759.0,2758.9,4.39843971]
[1749721129861,1.94468,2759.0,2758.9,0.00543971]
[1749721132763,3.39440512,2759.0,2758.9,0.00543971]
[1749721133963,3.39440512,2759.0,2758.9,9.71e-06]
[1749721134260,8.39440512,2759.0,2758.9,9.71e-06]
[1749721137368,3.39440512,2759.0,2758.9,9.71e-06]
[1749721140064,8.39440512,2759.0,2758.9,9.71e-06]
[1749721140570,10.56424028,2759.0,2758.9,9.71e-06]
[1749721140774,3.39440512,2759.0,2758.9,9.71e-06]
[1749721142877,2.17450512,2759.0,2758.9,9.71e-06]
[1749721145770,2.23652232,2759.0,2758.9,9.71e-06]
[1749721147575,2.23652232,2759.0,2758.9,4.36400971]
[1749721148079,2.23652232,2759.0,2758.9,9.71e-06]
[1749721149473,7.23652232,2759.0,2758.9,9.71e-06]
[1749721149674,4.40635748,2759.0,2758.9,9.71e-06]
[1749721149872,2.23652232,2759.0,2758.9,9.71e-06]
[1749721153687,5.65855748,2759.0,2758.9,9.71e-06]
[1749721154086,8.48872232,2759.0,2758.9,9.71e-06]
[1749721154390,11.35049758,2759.0,2758.9,9.71e-06]
[1749721156682,8.48872232,2759.0,2758.9,9.71e-06]
[1749721158387,11.35049758,2759.0,2758.9,9.71e-06]
[1749721158792,3.48872232,2759.0,2758.9,9.71e-06]
[1749721163284,6.35049758,2759.0,2758.9,9.71e-06]
[1749721163487,11.35049758,2759.0,2758.9,9.71e-06]
[1749721164080,6.35049758,2759.0,2758.9,9.71e-06]
[1749721164280,11.35049758,2759.0,2758.9,9.71e-06]
[1749721169396,6.35049758,2759.0,2758.9,9.71e-06]
[1749721169999,11.35049758,2759.0,2758.9,9.71e-06]
[1749721170400,0.72499,2758.2,2758.1,1.281]
[1749721170597,0.72502,2758.1,2758.0,0.6222]
[1749721170793,2.17474512,2758.1,2758.0,0.6222]
[1749721173302,0.72504,2758.0,2757.9,0.6065]
[1749721173604,5.38256512,2758.0,2757.9,0.6065]
[1749721175000,0.72507,2757.9,2757.8,0.00543971]
[1749721175206,2.17479512,2757.9,2757.8,0.00543971]
[1749721176307,2.17479512,2757.9,2757.8,1.21493971]
[1749721179497,2.17479512,2757.9,2757.8,0.00543971]
[1749721180204,1.44972512,2757.9,2757.8,5.73053971]
[1749721180400,3.93285,2758.0,2757.9,0.72507]
[1749721180602,3.93285,2758.0,2757.9,1.95257]
[1749721180900,3.93284,2758.0,2757.9,1.2275]
[1749721181502,0.72504,2758.0,2757.9,1.2275]
[1749721182007,0.72504,2758.0,2757.9,1.95257]
[1749721182202,0.72504,2758.0,2757.9,23.66857]
[1749721182609,0.72504,2758.0,2757.9,22.9435]
[1749721183005,0.72504,2758.0,2757.9,23.66857]
[1749721183209,0.72504,2758.0,2757.9,22.9435]
[1749721184810,0.72504,2758.0,2757.9,23.66857]
[1749721185405,0.72504,2758.0,2757.9,22.9435]
[1749721187208,0.72504,2758.0,2757.9,22.2945]
[1749721187409,2.17508963,2758.0,2757.9,23.01957]
[1749721187615,0.72504,2758.0,2757.9,22.2945]
[1749721189218,0.72504,2758.0,2757.9,23.01957]
[1749721190518,0.7870572,2758.0,2757.9,23.01957]
[1749721192012,2.2370911,2758.0,2757.9,23.01957]
[1749721192211,2.2370911,2758.0,2757.9,22.2945]
[1749721193718,2.2370911,2758.0,2757.9,1.2275]
[1749721193919,2.2370911,2758.0,2757.8,0.00543971]
[1749721193920,0.72507,2757.9,2757.8,0.00543971]
[1749721194122,0.72507,2757.9,2757.8,22.28733971]
[1749721194322,2.17518378,2757.9,2757.8,22.28733971]
[1749721194518,2.17518378,2757.9,2757.8,21.06943971]
[1749721196824,2.17518378,2757.9,2757.8,21.06143971]
[1749721201727,2.17518378,2757.9,2757.8,21.78653971]
[1749721202122,0.72507,2757.9,2757.8,21.78653971]
[1749721202625,0.72507,2757.9,2757.8,21.06143971]
[1749721204631,0.7870872,2757.9,2757.8,21.06143971]
[1749721205034,0.7870872,2757.9,2757.8,21.78653971]
[1749721205433,0.7870872,2757.9,2757.8,21.06143971]
[1749721205732,2.23718917,2757.9,2757.8,21.06143971]
[1749721208335,2.23718917,2757.9,2757.8,21.78653971]
[1749721209030,2.23718917,2757.9,2757.8,21.06143971]
[1749721209234,2.23718917,2757.9,2757.8,21.78653971]
[1749721210929,2.23718917,2757.9,2757.8,21.06143971]
[1749721211124,2.23718917,2757.9,2757.8,21.78653971]
[1749721212034,2.23718917,2757.9,2757.8,21.06143971]
[1749721212234,2.23718917,2757.9,2757.8,21.78653971]
[1749721213234,1.51211917,2757.9,2757.8,21.78653971]
[1749721214136,2.23718917,2757.9,2757.8,21.78653971]
[1749721217144,2.23718917,2757.9,2757.8,21.75753971]
[1749721218840,2.17517197,2757.9,2757.8,21.75753971]
[1749721219845,2.23718917,2757.9,2757.8,21.75753971]
[1749721220445,2.23719537,2757.9,2757.8,0.00543971]
[1749721220841,3.43179537,2757.9,2757.8,16.67043971]
[1749721222149,3.43179537,2757.9,2757.8,0.00543971]
[1749721222350,3.43179537,2757.9,2757.8,16.67043971]
[1749721224548,3.43179537,2757.9,2757.8,0.00543971]
[1749721226358,2.23719537,2757.9,2757.8,16.67043971]
[1749721226657,3.44839537,2757.9,2757.8,16.67043971]
[1749721226951,3.44839537,2757.9,2757.8,0.00543971]
[1749721229051,3.38637817,2757.9,2757.8,0.00543971]
[1749721235858,1.45010817,2757.9,2757.5,16.80057]
[1749721236163,0.72506,2758.0,2757.9,0.72507]
[1749721236365,2.17520024,2758.0,2757.9,17.39107]
[1749721236559,2.17520024,2758.0,2757.9,18.64827]
[1749721239361,1.45014024,2758.0,2757.9,18.64827]
[1749721239566,0.72503,2758.1,2758.0,0.72504]
[1749721239860,2.17505798,2758.1,2758.0,2.52714]
[1749721240054,2.17505798,2758.1,2758.0,3.11304]
[1749721240260,2.17505798,2758.1,2758.0,2.388]
[1749721240765,2.17505798,2758.1,2758.0,0.5859]
[1749721240957,2.17505798,2758.1,2758.0,21.5789]
[1749721241157,1.45002798,2758.1,2757.7,1.79113971]
[1749721241364,0.72509,2757.8,2757.7,0.00543971]
[1749721241567,2.17511798,2757.8,2757.7,20.99843971]
[1749721248471,2.17511798,2757.8,2757.7,0.00543971]
[1749721248772,2.17511798,2757.8,2757.7,16.66843971]
[1749721249875,2.17511798,2757.8,2757.7,0.00543971]
[1749721271185,0.72525,2757.2,2757.1,20.99]
[1749721275590,0.72525,2757.3,2757.2,0.72523]
[1749721275784,0.7252,2757.5,2757.4,0.72517]
[1749721276085,2.17555512,2757.5,2757.4,3.93297]
[1749721276884,2.17555512,2757.5,2757.4,3.2078]
[1749721277085,2.17555512,2757.5,2757.4,3.8315]
[1749721277387,2.17555512,2757.5,2757.4,4.5567]
[1749721277879,2.17555512,2757.5,2757.4,45.3567]
[1749721278080,2.17555512,2757.5,2757.4,44.6315]
[1749721278679,2.17555512,2757.5,2757.4,45.3567]
[1749721279786,2.17555512,2757.5,2757.4,45.8823]
[1749721280586,2.17551704,2757.5,2757.4,45.8823]
[1749721280890,2.17551704,2757.5,2757.4,44.0078]
[1749721281093,2.17551704,2757.5,2757.4,64.9968]
[1749721282783,2.17551704,2757.5,2757.4,24.1968]
[1749721286190,2.17551704,2757.5,2757.4,65.722]
[1749721286391,2.17551704,2757.5,2757.4,64.9968]
[1749721286892,2.17551704,2757.5,2757.4,65.722]
[1749721287093,2.17551704,2757.5,2757.4,64.9968]
[1749721287786,2.17551704,2757.5,2757.4,65.722]
[1749721288088,2.17551704,2757.5,2757.4,64.9968]
[1749721288892,2.17551704,2757.5,2757.4,65.722]
[1749721289392,0.72513,2757.7,2757.6,0.72513]
[1749721289584,2.17534102,2757.7,2757.6,17.38613]
[1749721289981,2.17534102,2757.7,2757.6,18.64153]
[1749721290287,2.17534102,2757.7,2757.6,17.9164]
[1749721290692,2.17534102,2757.7,2757.6,18.64155]
[1749721290887,2.17534102,2757.7,2757.6,17.9164]
[1749721294397,2.17534102,2757.7,2757.6,18.64155]
[1749721295791,0.72509,2757.9,2757.8,0.72507]
[1749721295990,2.1752154,2757.9,2757.8,5.05207]
[1749721296295,2.1752154,2757.9,2757.8,8.25987]
[1749721296495,2.1752154,2757.9,2757.8,3.2078]
[1749721296796,2.1752154,2757.9,2757.5,1.33717]
[1749721296797,0.72515,2757.6,2757.5,4.54497]
[1749721296997,0.72515,2757.6,2757.5,26.70897]
[1749721298406,0.72515,2757.6,2757.5,25.52797]
[1749721299009,0.72514,2757.7,2757.6,0.72512]
[1749721299207,2.17537286,2757.7,2757.6,0.72512]
[1749721300708,2.17537286,2757.7,2757.6,21.70712]
[1749721301105,1.45023286,2757.7,2757.6,21.70712]
[1749721301311,0.7251,2757.8,2757.7,0.72512]
[1749721301510,2.17525569,2757.8,2757.7,18.59152]
[1749721302106,1.45015569,2757.8,2757.7,18.59152]
[1749721302512,0.72509,2757.9,2757.8,0.72507]
[1749721302708,2.17523308,2757.9,2757.8,0.72507]
[1749721303107,0.72509,2757.8,2757.7,18.5915]
[1749721303415,0.6355,2758.1,2758.0,0.72504]
[1749721303614,2.08556016,2758.1,2758.0,21.70704]
[1749721304114,2.81058016,2758.1,2758.0,20.982]
[1749721304315,2.81058535,2758.1,2758.0,20.982]
[1749721305411,2.81058535,2758.1,2758.0,21.70704]
[1749721306012,2.81058535,2758.1,2758.0,20.982]
[1749721306716,2.81058535,2758.1,2758.0,21.70704]
[1749721307812,2.08556535,2758.1,2758.0,21.70704]
[1749721308015,1.45006535,2758.1,2758.0,21.70704]
[1749721308615,2.17508535,2758.1,2758.0,21.70704]
[1749721309414,2.23710255,2758.1,2758.0,21.70704]
[1749721311510,1.51208255,2758.1,2758.0,20.982]
[1749721311722,2.23710255,2758.1,2758.0,21.70704]
[1749721313211,1.51208255,2758.1,2758.0,21.70704]
[1749721313417,2.23710255,2758.1,2758.0,21.70704]
[1749721317518,2.23710255,2758.1,2758.0,20.982]
[1749721317818,2.23710255,2758.1,2758.0,21.70704]
[1749721319717,2.23710255,2758.1,2758.0,20.977]
[1749721319920,3.47340255,2758.1,2758.0,20.977]
[1749721320317,0.7251,2757.8,2757.7,0.72511]
[1749721320514,0.72512,2757.7,2757.6,3.2078]
[1749721320721,3.04893,2758.0,2757.7,4.324]
[1749721320722,0.7251,2757.8,2757.7,4.324]
[1749721320916,2.17537632,2757.8,2757.7,4.324]
[1749721322421,3.38347632,2757.8,2757.7,4.324]
[1749721325322,3.38347632,2757.8,2757.7,20.977]
[1749721330223,3.38347632,2757.8,2757.7,4.324]
[1749721330420,2.65837632,2757.8,2757.4,40.8]
[1749721330723,0.72515,2757.6,2757.5,16.652]
[1749721330928,2.17542632,2757.6,2757.5,16.652]
[1749721337724,0.72517,2757.5,2757.4,4.321]
[1749721337930,0.72517,2757.5,2757.4,20.973]
[1749721337931,2.1755501,2757.5,2757.4,20.973]
[1749721338130,2.8099501,2757.5,2757.4,20.973]
[1749721340932,2.80998717,2757.5,2757.4,20.973]
[1749721344934,2.80998717,2757.5,2757.4,21.0350172]
[1749721345931,2.80998717,2757.5,2757.4,20.973]
[1749721346936,2.80998717,2757.5,2757.4,21.0350172]
[1749721347531,1.45041717,2757.5,2757.4,21.7602172]
[1749721347738,2.17558717,2757.5,2757.4,22.9447172]
[1749721347933,0.72517,2757.5,2757.4,22.8827]
[1749721348738,2.17544174,2757.5,2757.4,22.8827]
[1749721349439,1.45027174,2757.5,2757.4,22.8827]
[1749721349739,2.17544174,2757.5,2757.4,22.8827]
[1749721350438,1.45027174,2757.5,2757.4,22.8827]
[1749721350838,2.17544174,2757.5,2757.4,22.8827]
[1749721351340,1.45027174,2757.5,2757.4,22.8827]
[1749721353642,2.17544174,2757.5,2757.4,22.8827]
[1749721354040,1.45027174,2757.5,2757.4,22.8827]
[1749721359043,2.17544174,2757.5,2757.4,22.8827]
[1749721360142,1.45027174,2757.5,2757.4,22.8827]
[1749721364545,0.6349,2757.9,2757.5,1.81293]
[1749721364744,1.45017133,2757.8,2757.7,0.7251]
[1749721364943,1.45017133,2757.8,2757.7,21.6881]
[1749721365340,2.17527133,2757.8,2757.7,21.6881]
[1749721365742,1.45017133,2757.8,2757.7,21.6881]
[1749721367344,2.17527133,2757.8,2757.7,21.6881]
[1749721367543,0.72512,2757.7,2757.6,2.01163]
[1749721367742,0.72512,2757.7,2757.6,22.97363]
[1749721368645,0.72512,2757.7,2757.6,6.32863]
[1749721368946,0.72512,2757.7,2757.6,20.961]
[1749721369151,0.72518,2757.5,2757.4,0.72519]
[1749721369357,0.72518,2757.5,2757.4,21.68619]
[1749721369951,0.72518,2757.5,2757.4,0.72519]
[1749721370146,0.72518,2757.5,2757.4,21.68619]
[1749721370450,0.72518,2757.5,2757.4,21.68519]
[1749721371653,1.36817,2757.6,2757.5,0.72518]
[1749721375156,0.72518,2757.5,2757.4,4.317]
[1749721375347,0.72518,2757.5,2757.4,21.6842]
[1749721376660,0.7252,2757.4,2757.3,3.93303]
[1749721376845,0.7252,2757.4,2757.3,24.1668]
[1749721378351,0.7252,2757.4,2757.3,24.89203]
[1749721379258,2.17553996,2757.4,2757.3,24.89203]
[1749721379651,0.7252,2757.4,2757.3,24.89203]
[1749721380360,2.17553555,2757.4,2757.3,24.89203]
[1749721381856,0.7252,2757.4,2757.3,24.89203]
[1749721382053,2.17555077,2757.4,2757.3,24.89203]
[1749721382255,0.7252,2757.4,2757.3,24.89203]
[1749721384362,2.17553552,2757.4,2757.3,24.89203]
[1749721385456,2.17553552,2757.4,2757.3,5.04223]
[1749721385661,1.81309,2757.3,2756.9,0.00543971]
[1749721385852,0.72531,2757.0,2756.9,16.64543971]
[1749721386154,2.17564552,2757.0,2756.9,16.64543971]
[1749721387048,2.17564552,2757.0,2756.9,0.00543971]
[1749721387255,2.17564552,2757.0,2756.9,16.64543971]
[1749721390654,2.17564552,2757.0,2756.9,20.96043971]
[1749721391965,2.17564552,2757.0,2756.9,0.00543971]
[1749721392159,2.17564552,2757.0,2756.9,16.64743971]
[1749721392665,2.17564552,2757.0,2756.9,0.00543971]
[1749721393066,2.17564552,2757.0,2756.9,16.64743971]
[1749721393462,2.17564552,2757.0,2756.9,0.00543971]
[1749721393662,2.17564552,2757.0,2756.9,16.64743971]
[1749721393863,2.17564552,2757.0,2756.9,0.00543971]
[1749721394263,2.17564552,2757.0,2756.9,16.64643971]
[1749721394869,2.17564552,2757.0,2756.9,0.00543971]
[1749721399971,2.17564552,2757.0,2756.9,0.06745691]
[1749721400872,0.72531,2757.0,2756.9,0.06745691]
[1749721401072,2.17606272,2757.0,2756.9,0.06745691]
[1749721401970,0.72541,2756.6,2756.5,3.2078]
[1749721402175,0.72541,2756.6,2756.5,64.9628]
[1749721403173,0.72541,2756.6,2756.5,61.755]
[1749721405582,0.72541,2756.6,2756.5,62.48044]
[1749721406383,0.72541,2756.6,2756.5,41.52544]
[1749721406583,0.72541,2756.6,2756.5,62.48044]
[1749721406879,0.72541,2756.6,2756.5,62.47944]
[1749721407087,1.37029,2756.7,2756.6,0.72541]
[1749721408587,0.00543971,2756.8,2756.7,0.72538]
[1749721409280,0.00543971,2756.8,2756.7,1.98988]
[1749721411986,0.73079971,2756.8,2756.7,22.2185]
[1749721412186,0.73079971,2756.8,2756.7,1.2645]
[1749721412382,0.73079971,2756.8,2756.7,22.2185]
[1749721412583,0.73079971,2756.8,2756.7,22.94388]
[1749721413589,0.73079971,2756.8,2756.7,1.98988]
[1749721413793,0.73079971,2756.8,2756.7,22.94288]
[1749721414194,0.00543971,2756.8,2756.7,22.94288]
[1749721414689,0.00543971,2756.8,2756.7,1.98988]
[1749721414883,0.00543971,2756.8,2756.6,4.4747]
[1749721415090,2.17611571,2756.7,2756.6,3.9069172]
[1749721415289,2.17611571,2756.7,2756.6,24.8599172]
[1749721415989,2.17611571,2756.7,2756.6,25.5853272]
[1749721416190,2.17611571,2756.7,2756.6,24.7969]
[1749721417287,2.17611571,2756.7,2756.6,25.52231]
[1749721417790,2.17611571,2756.7,2756.6,24.7969]
[1749721418091,2.17611571,2756.7,2756.6,25.52231]
[1749721418394,2.17616147,2756.7,2756.6,25.52231]
[1749721418993,2.17616147,2756.7,2756.6,24.7969]
[1749721419188,2.17616147,2756.7,2756.6,7.5188]
[1749721419694,2.17616147,2756.7,2756.6,24.1568]
[1749721422191,2.17616147,2756.7,2756.6,7.5188]
[1749721422399,2.17616147,2756.7,2756.6,24.1558]
[1749721423795,2.17616147,2756.7,2756.6,20.948]
[1749721428393,2.17616147,2756.7,2756.6,4.311]
[1749721428599,2.17616147,2756.7,2756.6,20.947]
[1749721428996,2.17616147,2756.7,2756.6,61.747]
[1749721430402,2.17616147,2756.7,2756.6,61.8090172]
[1749721431302,2.17616147,2756.7,2756.6,61.747]
[1749721431800,5.38396147,2756.7,2756.6,57.436]
[1749721432002,6.58526147,2756.7,2756.6,57.436]
[1749721432308,6.58526147,2756.7,2756.6,57.4980172]
[1749721432895,5.38396147,2756.7,2756.6,57.4980172]
[1749721433091,2.17616147,2756.7,2756.6,57.4980172]
[1749721436207,3.35046147,2756.7,2756.6,57.4980172]
[1749721441211,2.17616147,2756.7,2756.6,57.4980172]
[1749721443010,0.72546,2756.4,2756.3,0.00543971]
[1749721443213,2.17624147,2756.4,2756.3,20.95043971]
[1749721443615,2.17624147,2756.4,2756.3,61.75043971]
[1749721443807,2.17624147,2756.4,2756.3,4.31643971]
[1749721444015,2.17624147,2756.4,2756.3,20.95043971]
[1749721447014,2.17624147,2756.4,2756.3,0.00543971]
[1749721447215,2.17624147,2756.4,2756.3,20.94943971]
[1749721449116,2.17624147,2756.4,2756.3,24.15723971]
[1749721449321,2.17624147,2756.4,2756.3,24.79103971]
[1749721449913,2.17624147,2756.4,2756.3,21.58323971]
[1749721450819,2.17624147,2756.4,2756.3,4.95023971]
[1749721451123,2.17624147,2756.4,2756.3,21.57923971]
[1749721453324,2.17624147,2756.4,2756.3,0.00543971]
[1749721453522,2.17624147,2756.4,2756.3,20.94443971]
[1749721458728,2.17624147,2756.4,2756.3,16.63643971]
[1749721458925,2.17624147,2756.4,2756.3,20.56972971]
[1749721458926,1.45078147,2756.4,2756.3,20.56972971]
[1749721459228,2.17624147,2756.4,2756.3,21.79782971]
[1749721459621,2.17624147,2756.4,2756.3,21.07233971]
[1749721459822,2.17624147,2756.4,2756.3,17.92655691]
[1749721460028,2.17624147,2756.4,2756.3,18.65204691]
[1749721460231,2.17624147,2756.4,2756.3,17.92655691]
[1749721461025,0.72546,2756.4,2756.3,17.92655691]
[1749721461223,2.17639365,2756.4,2756.3,17.92655691]
[1749721462623,2.17639365,2756.4,2756.3,1.29555691]
[1749721462825,2.17639365,2756.4,2756.3,22.23255691]
[1749721463527,2.17639365,2756.4,2756.3,0.06745691]
[1749721463726,2.17639365,2756.4,2756.3,21.00445691]
[1749721464232,2.17639365,2756.4,2756.3,0.06745691]
[1749721464431,2.17639365,2756.4,2756.3,21.00445691]
[1749721467830,2.17639365,2756.4,2756.3,21.00345691]
[1749721468232,2.17639365,2756.4,2756.3,0.06745691]
[1749721468434,2.17639365,2756.4,2756.3,21.00345691]
[1749721468624,2.17639365,2756.4,2756.3,0.06745691]
[1749721468830,2.17639365,2756.4,2756.3,21.00345691]
[1749721469030,2.17639365,2756.4,2756.3,21.00245691]
[1749721470538,2.17639365,2756.4,2756.3,0.06745691]
[1749721470730,2.17639365,2756.4,2756.3,21.00245691]
[1749721473131,2.17639365,2756.4,2756.3,21.00145691]
[1749721473633,3.47409365,2756.4,2756.3,21.00145691]
[1749721473935,3.47409365,2756.4,2756.3,0.06745691]
[1749721475231,2.17639365,2756.4,2756.3,0.06745691]
[1749721476339,2.17639365,2756.4,2756.3,6.91e-06]
[1749721476635,3.46679365,2756.4,2756.3,6.91e-06]
[1749721481052,5.63662233,2756.4,2756.3,6.91e-06]
[1749721488548,3.46679365,2756.4,2756.3,6.91e-06]
[1749721490752,2.17639365,2756.4,2756.3,6.91e-06]
[1749721492053,4.03799365,2756.4,2756.3,6.91e-06]
[1749721495463,2.77399365,2756.4,2756.3,6.91e-06]
[1749721496852,2.17639365,2756.4,2756.3,6.91e-06]
[1749721501467,2.17639365,2756.4,2756.3,1.18720691]
[1749721503268,2.17639365,2756.4,2756.3,1.80460691]
[1749721514574,0.72552,2756.2,2756.1,0.00361677]